[Event "*** Titled Tuesday Blitz"]
[Site "Chess.com"]
[Date "2021.04.20"]
[Round "10"]
[White "Pantata007"]
[Black "lamomiablanca"]
[Result "0-1"]
[WhiteElo "2231"]
[BlackElo "2401"]
[TimeControl "180+1"]
[EndTime "11:56:17 PDT"]
[Termination "lamomiablanca won on time"]

1. d4 {[%clk 0:03:00.9]} 1... d5 {[%clk 0:03:00.1]} 2. c4 {[%clk 0:02:58.8]}
2... c6 {[%clk 0:03:00.5]} 3. Nc3 {[%clk 0:02:57.3]} 3... Nf6 {[%clk 0:03:00.7]}
4. e3 {[%clk 0:02:56.1]} 4... g6 {[%clk 0:03:00.7]} 5. Nf3 {[%clk 0:02:54.9]}
5... Bg7 {[%clk 0:03:00.9]} 6. Be2 {[%clk 0:02:55.5]} 6... O-O {[%clk
0:03:01.3]} 7. O-O {[%clk 0:02:55.9]} 7... Bg4 {[%clk 0:03:01.1]} 8. h3 {[%clk
0:01:58.2]} 8... Bxf3 {[%clk 0:03:01.2]} 9. Bxf3 {[%clk 0:01:59.1]} 9... e6
{[%clk 0:03:01.6]} 10. Qb3 {[%clk 0:01:48.5]} 10... Qb6 {[%clk 0:03:00.7]} 11.
c5 {[%clk 0:01:48.5]} 11... Qxb3 {[%clk 0:03:00.9]} 12. axb3 {[%clk 0:01:49.4]}
12... Nbd7 {[%clk 0:03:01.5]} 13. b4 {[%clk 0:01:49.4]} 13... e5 {[%clk
0:03:01.5]} 14. b5 {[%clk 0:01:46.3]} 14... Ne8 {[%clk 0:02:56.5]} 15. bxc6
{[%clk 0:01:39.2]} 15... bxc6 {[%clk 0:02:57.4]} 16. b4 {[%clk 0:01:39.3]} 16...
exd4 {[%clk 0:02:56.8]} 17. exd4 {[%clk 0:01:38.1]} 17... Bxd4 {[%clk
0:02:57.2]} 18. Bd2 {[%clk 0:01:36.1]} 18... Nc7 {[%clk 0:02:57]} 19. Rab1
{[%clk 0:01:32.2]} 19... Rfe8 {[%clk 0:02:53.7]} 20. Ne2 {[%clk 0:01:25.1]}
20... Bg7 {[%clk 0:02:52]} 21. Rfe1 {[%clk 0:01:20.3]} 21... Nb5 {[%clk
0:02:50.9]} 22. Nf4 {[%clk 0:01:15.8]} 22... a5 {[%clk 0:02:49.2]} 23. bxa5
{[%clk 0:01:10.3]} 23... Nxc5 {[%clk 0:02:48.6]} 24. Nxd5 {[%clk 0:01:10.3]}
24... Na3 {[%clk 0:01:48.3]} 25. Rxe8+ {[%clk 0:01:00]} 25... Rxe8 {[%clk
0:01:48.1]} 26. Rc1 {[%clk 0:00:54.1]} 26... Nb3 {[%clk 0:01:48.1]} 27. Rxc6
{[%clk 0:00:42.6]} 27... Nxd2 {[%clk 0:01:47.8]} 28. a6 {[%clk 0:00:39.1]} 28...
Re1+ {[%clk 0:01:37.7]} 29. Kh2 {[%clk 0:00:37.3]} 29... Be5+ {[%clk 0:01:37.9]}
30. g3 {[%clk 0:00:34.3]} 30... Nxf3+ {[%clk 0:01:37.9]} 31. Kg2 {[%clk
0:00:34.4]} 31... Ra1 {[%clk 0:01:20.1]} 32. a7 {[%clk 0:00:26.6]} 32... Nb5
{[%clk 0:01:19.8]} 33. Rc8+ {[%clk 0:00:24.3]} 33... Kg7 {[%clk 0:01:19.5]} 34.
a8=Q {[%clk 0:00:22.6]} 34... Rxa8 {[%clk 0:01:02.8]} 35. Rxa8 {[%clk
0:00:23.5]} 35... Nfd4 {[%clk 0:01:01.8]} 36. Re8 {[%clk 0:00:21.2]} 36... Bf6
{[%clk 0:00:53.1]} 37. Nxf6 {[%clk 0:00:18.8]} 37... Kxf6 {[%clk 0:00:54]} 38.
h4 {[%clk 0:00:18.8]} 38... Ne6 {[%clk 0:00:52.8]} 39. Rh8 {[%clk 0:00:17.5]}
39... h5 {[%clk 0:00:52.9]} 40. Rb8 {[%clk 0:00:17.9]} 40... Nd6 {[%clk
0:00:52.2]} 41. Rb6 {[%clk 0:00:18]} 41... Nf5 {[%clk 0:00:51.8]} 42. Ra6 {[%clk
0:00:17.6]} 42... Ne7 {[%clk 0:00:48.7]} 43. Ra7 {[%clk 0:00:17.1]} 43... Nc6
{[%clk 0:00:44]} 44. Ra6 {[%clk 0:00:16.7]} 44... Ne5 {[%clk 0:00:44.2]} 45. Ra7
{[%clk 0:00:16.8]} 45... Ng4 {[%clk 0:00:43.9]} 46. Rb7 {[%clk 0:00:14.8]} 46...
Nd4 {[%clk 0:00:36.4]} 47. Ra7 {[%clk 0:00:12.1]} 47... Nf5 {[%clk 0:00:34.2]}
48. Rb7 {[%clk 0:00:11.8]} 48... Ne5 {[%clk 0:00:31.9]} 49. Ra7 {[%clk 0:00:11]}
49... Ng4 {[%clk 0:00:26.8]} 50. Ra6+ {[%clk 0:00:08.6]} 50... Kg7 {[%clk
0:00:26.1]} 51. Ra7 {[%clk 0:00:08.6]} 51... Nf6 {[%clk 0:00:23.9]} 52. Rb7
{[%clk 0:00:08.4]} 52... Nd6 {[%clk 0:00:21.1]} 53. Ra7 {[%clk 0:00:07.8]} 53...
Nde4 {[%clk 0:00:21.5]} 54. Rb7 {[%clk 0:00:06.7]} 54... Ng4 {[%clk 0:00:17.3]}
55. f3 {[%clk 0:00:04.4]} 55... Ne3+ {[%clk 0:00:17.4]} 56. Kh2 {[%clk
0:00:02.8]} 56... Nf6 {[%clk 0:00:17.5]} 57. Ra7 {[%clk 0:00:02]} 57... Nf5
{[%clk 0:00:17.4]} 58. Rb7 {[%clk 0:00:01.3]} 58... Nd4 {[%clk 0:00:17.6]} 59.
Kg2 {[%clk 0:00:00.7]} 59... Ne6 {[%clk 0:00:16.4]} 0-1

[Event "*** Titled Tuesday Blitz"]
[Site "Chess.com"]
[Date "2021.04.20"]
[Round "10"]
[White "zurzan"]
[Black "yonaltimur"]
[Result "1-0"]
[WhiteElo "2007"]
[BlackElo "1747"]
[TimeControl "180+1"]
[EndTime "11:56:18 PDT"]
[Termination "zurzan won by resignation"]

1. f4 {[%clk 0:03:00.9]} 1... d5 {[%clk 0:02:57.9]} 2. Nf3 {[%clk 0:03:00.9]}
2... c5 {[%clk 0:02:56.6]} 3. g3 {[%clk 0:03:01.3]} 3... g6 {[%clk 0:02:51.8]}
4. Bg2 {[%clk 0:03:02.2]} 4... Bg7 {[%clk 0:02:52]} 5. O-O {[%clk 0:03:03]} 5...
Nc6 {[%clk 0:02:51.5]} 6. d3 {[%clk 0:03:03.9]} 6... Nf6 {[%clk 0:02:50.2]} 7.
c3 {[%clk 0:03:04.8]} 7... O-O {[%clk 0:02:49.1]} 8. Qc2 {[%clk 0:03:05]} 8...
Bf5 {[%clk 0:02:37.8]} 9. Nh4 {[%clk 0:03:03]} 9... d4 {[%clk 0:02:35.7]} 10.
Nxf5 {[%clk 0:03:01.7]} 10... gxf5 {[%clk 0:02:35.7]} 11. a4 {[%clk 0:03:00.8]}
11... Rc8 {[%clk 0:02:30.4]} 12. Na3 {[%clk 0:02:59]} 12... Nd5 {[%clk
0:02:24.9]} 13. c4 {[%clk 0:02:52.4]} 13... Ne3 {[%clk 0:02:22.1]} 14. Bxe3
{[%clk 0:02:51.7]} 14... dxe3 {[%clk 0:02:21.5]} 15. Nb5 {[%clk 0:02:47.5]}
15... Nd4 {[%clk 0:02:20.4]} 16. Nxd4 {[%clk 0:02:46.7]} 16... cxd4 {[%clk
0:02:18.6]} 17. Bxb7 {[%clk 0:02:43.4]} 17... Rb8 {[%clk 0:02:17.9]} 18. Bf3
{[%clk 0:02:37.6]} 18... Qc7 {[%clk 0:02:17.4]} 19. Rab1 {[%clk 0:02:31.9]}
19... a5 {[%clk 0:02:14.4]} 20. b3 {[%clk 0:02:27.8]} 20... Qc5 {[%clk
0:02:14.1]} 21. Rfc1 {[%clk 0:02:14.8]} 21... Rfc8 {[%clk 0:02:11.2]} 22. Qd1
{[%clk 0:02:13.1]} 22... e6 {[%clk 0:02:06.8]} 23. Qe1 {[%clk 0:02:12.6]} 23...
Rb4 {[%clk 0:02:05.9]} 24. h3 {[%clk 0:01:59.4]} 24... Rcb8 {[%clk 0:02:03.8]}
25. Qd1 {[%clk 0:01:55.5]} 25... Kh8 {[%clk 0:01:48.4]} 26. Kg2 {[%clk
0:01:54.7]} 26... Bf6 {[%clk 0:01:46.5]} 27. Rb2 {[%clk 0:01:48.2]} 27... Be7
{[%clk 0:01:44.1]} 28. Rcb1 {[%clk 0:01:47.5]} 28... Qb6 {[%clk 0:01:43]} 29.
Qc2 {[%clk 0:01:45.4]} 29... Bc5 {[%clk 0:01:41.4]} 30. g4 {[%clk 0:01:42.7]}
30... fxg4 {[%clk 0:01:36.3]} 31. hxg4 {[%clk 0:01:42.9]} 31... f5 {[%clk
0:01:36]} 32. g5 {[%clk 0:01:40.9]} 32... Kg7 {[%clk 0:01:32.6]} 33. Rh1 {[%clk
0:01:39.6]} 33... Rxb3 {[%clk 0:01:31]} 34. Rxb3 {[%clk 0:01:37.5]} 34... Qxb3
{[%clk 0:01:30.1]} 35. Qd1 {[%clk 0:01:30.5]} 35... Qxd1 {[%clk 0:01:28.7]} 36.
Rxd1 {[%clk 0:01:29.8]} 36... Rb4 {[%clk 0:01:28.5]} 37. Ra1 {[%clk 0:01:29.3]}
37... Rb2 {[%clk 0:01:27.9]} 38. Kh3 {[%clk 0:01:18.2]} 38... h6 {[%clk
0:01:26.3]} 39. Kh4 {[%clk 0:01:12.8]} 39... Bd6 {[%clk 0:01:24.1]} 40. Kh5
{[%clk 0:01:09.1]} 40... Bxf4 {[%clk 0:01:20.7]} 41. gxh6+ {[%clk 0:01:08.5]}
41... Bxh6 {[%clk 0:01:20.3]} 42. Rg1+ {[%clk 0:01:08.3]} 42... Kh7 {[%clk
0:01:18.9]} 43. Rg6 {[%clk 0:01:08.2]} 43... Bf4 {[%clk 0:01:16.2]} 44. Rxe6
{[%clk 0:01:07.1]} 44... Rb8 {[%clk 0:01:07.1]} 45. Ra6 {[%clk 0:01:05]} 45...
Rd8 {[%clk 0:00:39.8]} 46. Ra7+ {[%clk 0:01:03.6]} 46... Kg8 {[%clk 0:00:37]}
47. Kg6 {[%clk 0:01:01.8]} 47... Bd6 {[%clk 0:00:32.7]} 48. Bd5+ {[%clk
0:00:55.1]} 48... Kf8 {[%clk 0:00:31]} 49. Kxf5 {[%clk 0:00:51.6]} 49... Bb4
{[%clk 0:00:27.5]} 50. Rf7+ {[%clk 0:00:49.4]} 50... Ke8 {[%clk 0:00:24.6]} 51.
Rc7 {[%clk 0:00:46.3]} 51... Kf8 {[%clk 0:00:20.7]} 52. Ke4 {[%clk 0:00:41.7]}
52... Re8+ {[%clk 0:00:19.3]} 53. Kxd4 {[%clk 0:00:41.6]} 53... Bd2 {[%clk
0:00:07.5]} 54. Rf7+ {[%clk 0:00:40.7]} 54... Kg8 {[%clk 0:00:06.2]} 55. Rf5+
{[%clk 0:00:32.4]} 55... Kg7 {[%clk 0:00:05.2]} 56. c5 {[%clk 0:00:31.2]} 56...
Bb4 {[%clk 0:00:04.8]} 57. c6 {[%clk 0:00:29.6]} 57... Rd8 {[%clk 0:00:04.5]}
58. Rf7+ {[%clk 0:00:28.1]} 58... Kg6 {[%clk 0:00:03.4]} 59. Rd7 {[%clk
0:00:27.1]} 59... Rc8 {[%clk 0:00:03]} 60. Kxe3 {[%clk 0:00:26.1]} 60... Bc5+
{[%clk 0:00:02.2]} 61. Ke4 {[%clk 0:00:25.8]} 61... Bb6 {[%clk 0:00:02.4]} 62.
Rb7 {[%clk 0:00:22]} 62... Bc7 {[%clk 0:00:01.3]} 63. Be6 {[%clk 0:00:20.6]}
63... Kf6 {[%clk 0:00:01.6]} 64. Bxc8 {[%clk 0:00:20.2]} 1-0

[Event "*** Titled Tuesday Blitz"]
[Site "Chess.com"]
[Date "2021.04.20"]
[Round "10"]
[White "Sanan_Sjugirov"]
[Black "KuzubovYuriy"]
[Result "1-0"]
[WhiteElo "2932"]
[BlackElo "2874"]
[TimeControl "180+1"]
[EndTime "11:56:22 PDT"]
[Termination "Sanan_Sjugirov won by resignation"]

1. e4 {[%clk 0:03:00.9]} 1... c5 {[%clk 0:02:58.3]} 2. Nf3 {[%clk 0:03:00.1]}
2... Nc6 {[%clk 0:02:59]} 3. d4 {[%clk 0:02:58.4]} 3... cxd4 {[%clk 0:02:59.9]}
4. Nxd4 {[%clk 0:02:59.1]} 4... Nf6 {[%clk 0:03:00.5]} 5. Nc3 {[%clk 0:02:59.1]}
5... e5 {[%clk 0:03:01.2]} 6. Ndb5 {[%clk 0:02:59]} 6... d6 {[%clk 0:03:01.7]}
7. Bg5 {[%clk 0:02:58.8]} 7... a6 {[%clk 0:03:01.4]} 8. Na3 {[%clk 0:02:58.9]}
8... b5 {[%clk 0:03:01.5]} 9. Bxf6 {[%clk 0:02:58.4]} 9... gxf6 {[%clk
0:03:02.4]} 10. Nd5 {[%clk 0:02:58.5]} 10... f5 {[%clk 0:03:02.9]} 11. g3 {[%clk
0:02:46.3]} 11... Bg7 {[%clk 0:02:58.2]} 12. Bg2 {[%clk 0:02:41.5]} 12... fxe4
{[%clk 0:02:53.2]} 13. Bxe4 {[%clk 0:02:39.7]} 13... Be6 {[%clk 0:02:53]} 14.
Qh5 {[%clk 0:02:15.7]} 14... Rc8 {[%clk 0:02:46]} 15. c3 {[%clk 0:02:13.4]}
15... Ne7 {[%clk 0:02:40.6]} 16. Nxe7 {[%clk 0:02:06.7]} 16... Qxe7 {[%clk
0:02:41.5]} 17. Nc2 {[%clk 0:02:03.4]} 17... d5 {[%clk 0:01:57.9]} 18. Bf5
{[%clk 0:02:03]} 18... d4 {[%clk 0:01:40.2]} 19. O-O {[%clk 0:01:44]} 19... Bxf5
{[%clk 0:01:13.6]} 20. Qxf5 {[%clk 0:01:41.4]} 20... O-O {[%clk 0:01:12.7]} 21.
cxd4 {[%clk 0:01:33.8]} 21... Qe6 {[%clk 0:01:01]} 22. Qxe6 {[%clk 0:01:10.6]}
22... fxe6 {[%clk 0:01:01.9]} 23. Nb4 {[%clk 0:01:10.1]} 23... exd4 {[%clk
0:00:59.9]} 24. f4 {[%clk 0:01:01.4]} 24... e5 {[%clk 0:00:45.4]} 25. fxe5
{[%clk 0:00:57.8]} 25... Bxe5 {[%clk 0:00:44.7]} 26. Nd3 {[%clk 0:00:41.5]}
26... Bd6 {[%clk 0:00:44.4]} 27. Rxf8+ {[%clk 0:00:37]} 27... Kxf8 {[%clk
0:00:44.3]} 28. Rc1 {[%clk 0:00:33.6]} 28... Rc4 {[%clk 0:00:32.8]} 29. Kf2
{[%clk 0:00:23.8]} 29... Ke7 {[%clk 0:00:32.4]} 30. Kf3 {[%clk 0:00:22.2]} 30...
a5 {[%clk 0:00:20.3]} 31. Ke4 {[%clk 0:00:21.4]} 31... a4 {[%clk 0:00:20]} 32.
Kd5 {[%clk 0:00:18.5]} 32... Rxc1 {[%clk 0:00:20]} 33. Nxc1 {[%clk 0:00:19.4]}
33... h5 {[%clk 0:00:19.2]} 34. Nd3 {[%clk 0:00:16.1]} 34... a3 {[%clk
0:00:16.1]} 35. b3 {[%clk 0:00:15.4]} 35... Kd7 {[%clk 0:00:13.7]} 36. Kxd4
{[%clk 0:00:14]} 36... Ke6 {[%clk 0:00:13.4]} 37. Nf4+ {[%clk 0:00:10.1]} 37...
Kf5 {[%clk 0:00:11]} 38. Nxh5 {[%clk 0:00:09.3]} 38... Kg4 {[%clk 0:00:11]} 39.
Nf6+ {[%clk 0:00:07.7]} 39... Kf3 {[%clk 0:00:09.6]} 40. Kd3 {[%clk 0:00:06]}
40... Be7 {[%clk 0:00:08.6]} 41. Nd5 {[%clk 0:00:05.1]} 41... Bf8 {[%clk
0:00:08.7]} 42. Nc3 {[%clk 0:00:05]} 42... b4 {[%clk 0:00:08.7]} 43. Nd5 {[%clk
0:00:05.1]} 43... Bd6 {[%clk 0:00:07.7]} 44. Kc4 {[%clk 0:00:04.7]} 44... Ke2
{[%clk 0:00:08.3]} 45. Nxb4 {[%clk 0:00:04.2]} 45... Kd2 {[%clk 0:00:08.8]} 46.
Nd5 {[%clk 0:00:03.6]} 46... Kc2 {[%clk 0:00:08.4]} 47. g4 {[%clk 0:00:03.2]}
47... Kb2 {[%clk 0:00:08.5]} 48. Nc3 {[%clk 0:00:02.6]} 48... Be5 {[%clk
0:00:08.2]} 49. Nb5 {[%clk 0:00:02.9]} 49... Kxa2 {[%clk 0:00:07.9]} 50. h4
{[%clk 0:00:03]} 50... Kb2 {[%clk 0:00:06.5]} 51. Nxa3 {[%clk 0:00:03.2]} 51...
Kxa3 {[%clk 0:00:07.4]} 52. b4 {[%clk 0:00:03.4]} 52... Ka4 {[%clk 0:00:07.1]}
53. g5 {[%clk 0:00:03.3]} 53... Bf4 {[%clk 0:00:06.6]} 54. g6 {[%clk 0:00:03.2]}
54... Bh6 {[%clk 0:00:06.6]} 55. h5 {[%clk 0:00:03.1]} 55... Bf8 {[%clk
0:00:05.4]} 56. b5 {[%clk 0:00:03.5]} 56... Ka5 {[%clk 0:00:05.5]} 57. Kd5
{[%clk 0:00:04]} 57... Kxb5 {[%clk 0:00:05.7]} 58. Ke6 {[%clk 0:00:04.9]} 58...
Kc6 {[%clk 0:00:06]} 59. Kf7 {[%clk 0:00:05.3]} 59... Bh6 {[%clk 0:00:05.4]} 60.
g7 {[%clk 0:00:05.7]} 60... Bxg7 {[%clk 0:00:04.4]} 61. Kxg7 {[%clk 0:00:06.6]}
1-0

[Event "*** Titled Tuesday Blitz"]
[Site "Chess.com"]
[Date "2021.04.20"]
[Round "10"]
[White "olksuna"]
[Black "juancruzarias"]
[Result "1/2-1/2"]
[WhiteElo "2651"]
[BlackElo "2573"]
[TimeControl "180+1"]
[EndTime "11:56:23 PDT"]
[Termination "Game drawn by repetition"]

1. e4 {[%clk 0:03:00.9]} 1... e6 {[%clk 0:03:00.1]} 2. d4 {[%clk 0:03:00.1]}
2... d5 {[%clk 0:03:00.7]} 3. Nc3 {[%clk 0:03:00.6]} 3... Nf6 {[%clk 0:03:00]}
4. e5 {[%clk 0:03:00.5]} 4... Nfd7 {[%clk 0:02:59.8]} 5. f4 {[%clk 0:03:00.9]}
5... c5 {[%clk 0:03:00.3]} 6. Nf3 {[%clk 0:03:01.2]} 6... Nc6 {[%clk 0:03:00.3]}
7. Be3 {[%clk 0:03:01.1]} 7... cxd4 {[%clk 0:03:00.9]} 8. Nxd4 {[%clk
0:03:00.6]} 8... Bc5 {[%clk 0:03:01.5]} 9. Qd2 {[%clk 0:02:58.1]} 9... O-O
{[%clk 0:03:00.9]} 10. Be2 {[%clk 0:02:49.9]} 10... a6 {[%clk 0:03:00.1]} 11.
Rd1 {[%clk 0:02:44.2]} 11... Qc7 {[%clk 0:02:53.6]} 12. O-O {[%clk 0:02:33.6]}
12... Nxd4 {[%clk 0:02:54]} 13. Bxd4 {[%clk 0:02:33.5]} 13... b5 {[%clk
0:02:54.6]} 14. a3 {[%clk 0:02:30.6]} 14... b4 {[%clk 0:02:49.2]} 15. axb4
{[%clk 0:02:28.8]} 15... Bxb4 {[%clk 0:02:50.1]} 16. Kh1 {[%clk 0:02:24.8]}
16... a5 {[%clk 0:02:50]} 17. f5 {[%clk 0:02:17.6]} 17... exf5 {[%clk
0:02:11.2]} 18. Nxd5 {[%clk 0:02:12.4]} 18... Qb8 {[%clk 0:01:47.1]} 19. Qg5
{[%clk 0:01:58.8]} 19... Nxe5 {[%clk 0:01:22.9]} 20. Nf6+ {[%clk 0:01:03.3]}
20... Kh8 {[%clk 0:01:23.3]} 21. Rxf5 {[%clk 0:00:51.2]} 21... Bxf5 {[%clk
0:01:07]} 22. Qxf5 {[%clk 0:00:47.2]} 22... Ng6 {[%clk 0:00:55.4]} 23. Qh5
{[%clk 0:00:27.4]} 23... h6 {[%clk 0:00:51.1]} 24. Nd7 {[%clk 0:00:23.9]} 24...
Qf4 {[%clk 0:00:50]} 25. Nxf8 {[%clk 0:00:20.1]} 25... Bxf8 {[%clk 0:00:39.4]}
26. g3 {[%clk 0:00:17.9]} 26... Qc7 {[%clk 0:00:22.4]} 27. Qxh6+ {[%clk
0:00:16]} 27... Kg8 {[%clk 0:00:22.8]} 28. Qe3 {[%clk 0:00:14.2]} 28... Rd8
{[%clk 0:00:20.6]} 29. c3 {[%clk 0:00:10.7]} 29... Qb7+ {[%clk 0:00:18.4]} 30.
Qf3 {[%clk 0:00:09.3]} 30... Qxb2 {[%clk 0:00:19]} 31. Bc4 {[%clk 0:00:09.3]}
31... Nh8 {[%clk 0:00:14.6]} 32. Rf1 {[%clk 0:00:08.4]} 32... Rd7 {[%clk
0:00:13.6]} 33. Qa8 {[%clk 0:00:07.8]} 33... Qb7+ {[%clk 0:00:13.7]} 34. Qxb7
{[%clk 0:00:07.2]} 34... Rxb7 {[%clk 0:00:14.6]} 35. Re1 {[%clk 0:00:06.9]}
35... Re7 {[%clk 0:00:12.7]} 36. Rb1 {[%clk 0:00:06.2]} 36... Ng6 {[%clk
0:00:12.7]} 37. Rb8 {[%clk 0:00:06.6]} 37... Ne5 {[%clk 0:00:13.1]} 38. Ba2
{[%clk 0:00:05.5]} 38... Nc6 {[%clk 0:00:12.7]} 39. Ra8 {[%clk 0:00:04.7]} 39...
Nxd4 {[%clk 0:00:13.2]} 40. cxd4 {[%clk 0:00:05]} 40... Re1+ {[%clk 0:00:13.8]}
41. Kg2 {[%clk 0:00:03.7]} 41... Re2+ {[%clk 0:00:14.7]} 42. Kf3 {[%clk
0:00:04.3]} 42... Rxa2 {[%clk 0:00:15.6]} 43. Ke4 {[%clk 0:00:05.2]} 43... f6
{[%clk 0:00:10.8]} 44. d5 {[%clk 0:00:05]} 44... Kf7 {[%clk 0:00:08.9]} 45. Ra7+
{[%clk 0:00:05.4]} 45... Kg6 {[%clk 0:00:09.1]} 46. h4 {[%clk 0:00:05.5]} 46...
Bb4 {[%clk 0:00:07]} 47. g4 {[%clk 0:00:04.4]} 47... Re2+ {[%clk 0:00:05.1]} 48.
Kf4 {[%clk 0:00:04.3]} 48... Rd2 {[%clk 0:00:05.2]} 49. h5+ {[%clk 0:00:04.1]}
49... Kh7 {[%clk 0:00:05.7]} 50. Ke4 {[%clk 0:00:04.3]} 50... Re2+ {[%clk
0:00:06.2]} 51. Kf4 {[%clk 0:00:04.1]} 51... Rd2 {[%clk 0:00:06.9]} 52. Ke4
{[%clk 0:00:04]} 52... Rd1 {[%clk 0:00:07.6]} 53. Ra6 {[%clk 0:00:03.4]} 53...
Bc5 {[%clk 0:00:06.1]} 54. Rc6 {[%clk 0:00:03]} 54... Bb4 {[%clk 0:00:05.9]} 55.
Ra6 {[%clk 0:00:03.9]} 55... Rd2 {[%clk 0:00:05]} 56. Ra7 {[%clk 0:00:03.5]}
1/2-1/2

[Event "*** Titled Tuesday Blitz"]
[Site "Chess.com"]
[Date "2021.04.20"]
[Round "10"]
[White "Matensien"]
[Black "Michaelson_11"]
[Result "1-0"]
[WhiteElo "2388"]
[BlackElo "2230"]
[TimeControl "180+1"]
[EndTime "11:56:23 PDT"]
[Termination "Matensien won on time"]

1. d4 {[%clk 0:03:00.9]} 1... Nf6 {[%clk 0:02:58.8]} 2. c4 {[%clk 0:03:01.4]}
2... g6 {[%clk 0:02:59.7]} 3. Nf3 {[%clk 0:03:01.1]} 3... Bg7 {[%clk 0:03:00.6]}
4. g3 {[%clk 0:03:01.8]} 4... O-O {[%clk 0:03:01]} 5. Bg2 {[%clk 0:03:02.5]}
5... d6 {[%clk 0:03:01.9]} 6. O-O {[%clk 0:03:02.7]} 6... c6 {[%clk 0:03:02.5]}
7. h3 {[%clk 0:03:01.2]} 7... Qb6 {[%clk 0:03:00.2]} 8. Nc3 {[%clk 0:02:59.8]}
8... Qa6 {[%clk 0:03:00.4]} 9. b3 {[%clk 0:02:58.6]} 9... e5 {[%clk 0:02:59.8]}
10. dxe5 {[%clk 0:02:46.3]} 10... dxe5 {[%clk 0:03:00.7]} 11. Bb2 {[%clk
0:02:46.3]} 11... Nbd7 {[%clk 0:02:56.4]} 12. Qc2 {[%clk 0:02:40.9]} 12... Re8
{[%clk 0:02:54.3]} 13. Rad1 {[%clk 0:02:32]} 13... Nf8 {[%clk 0:02:28.7]} 14. g4
{[%clk 0:02:27.6]} 14... h5 {[%clk 0:02:01.5]} 15. g5 {[%clk 0:02:24.2]} 15...
N6h7 {[%clk 0:01:56.7]} 16. h4 {[%clk 0:02:15.8]} 16... Bf5 {[%clk 0:01:52.8]}
17. Qc1 {[%clk 0:01:52.9]} 17... Rad8 {[%clk 0:01:31.8]} 18. Rxd8 {[%clk
0:01:45.5]} 18... Rxd8 {[%clk 0:01:32.7]} 19. Na4 {[%clk 0:01:45.8]} 19... e4
{[%clk 0:01:24.1]} 20. Ne5 {[%clk 0:01:27.5]} 20... Qa5 {[%clk 0:01:08.4]} 21.
Bc3 {[%clk 0:01:10.6]} 21... Qc7 {[%clk 0:01:08]} 22. Qb2 {[%clk 0:01:11.2]}
22... b5 {[%clk 0:01:00.3]} 23. Nc5 {[%clk 0:01:07.6]} 23... b4 {[%clk
0:00:52.3]} 24. Bd4 {[%clk 0:01:06.8]} 24... Rxd4 {[%clk 0:00:48.7]} 25. Qxd4
{[%clk 0:01:07.7]} 25... Bxe5 {[%clk 0:00:47.3]} 26. Qd2 {[%clk 0:01:03.1]}
26... Bc3 {[%clk 0:00:34.8]} 27. Qe3 {[%clk 0:01:03]} 27... Qe5 {[%clk
0:00:29.3]} 28. Nxe4 {[%clk 0:00:58]} 28... Bd4 {[%clk 0:00:24.2]} 29. Qg3
{[%clk 0:00:41.5]} 29... Bxe4 {[%clk 0:00:13.7]} 30. Qxe5 {[%clk 0:00:41.2]}
30... Bxe5 {[%clk 0:00:14.6]} 31. Bxe4 {[%clk 0:00:41.4]} 31... Ne6 {[%clk
0:00:10.4]} 32. Bxc6 {[%clk 0:00:38.4]} 32... Nd4 {[%clk 0:00:10.6]} 33. Bf3
{[%clk 0:00:31.8]} 33... Nxf3+ {[%clk 0:00:10.7]} 34. exf3 {[%clk 0:00:32.7]}
34... Nf8 {[%clk 0:00:11.3]} 35. Rd1 {[%clk 0:00:27.7]} 35... Ne6 {[%clk
0:00:11.3]} 36. Rd7 {[%clk 0:00:27.4]} 36... Bd4 {[%clk 0:00:09.6]} 37. f4
{[%clk 0:00:16.7]} 37... Kf8 {[%clk 0:00:07.3]} 38. f5 {[%clk 0:00:15.4]} 38...
gxf5 {[%clk 0:00:07.3]} 39. Kg2 {[%clk 0:00:13.9]} 39... Ke8 {[%clk 0:00:06.1]}
40. Rb7 {[%clk 0:00:12.5]} 40... f4 {[%clk 0:00:04.4]} 41. Kf3 {[%clk
0:00:12.3]} 41... Bb6 {[%clk 0:00:04.5]} 42. Rb8+ {[%clk 0:00:10.1]} 42... Ke7
{[%clk 0:00:04.4]} 43. Rh8 {[%clk 0:00:11]} 43... Nd4+ {[%clk 0:00:04.2]} 44.
Kxf4 {[%clk 0:00:09.6]} 44... Ne2+ {[%clk 0:00:04.4]} 45. Kf5 {[%clk 0:00:04.9]}
45... Nc1 {[%clk 0:00:04.7]} 46. Rxh5 {[%clk 0:00:04.4]} 46... Nxa2 {[%clk
0:00:04.9]} 47. Rh7 {[%clk 0:00:03.7]} 47... Kd6 {[%clk 0:00:02.6]} 48. Rxf7
{[%clk 0:00:03.3]} 48... Nc1 {[%clk 0:00:03]} 49. g6 {[%clk 0:00:03.9]} 49...
Bd4 {[%clk 0:00:03.3]} 50. g7 {[%clk 0:00:03.6]} 50... Bxg7 {[%clk 0:00:03.8]}
51. Rxg7 {[%clk 0:00:04.5]} 51... Nxb3 {[%clk 0:00:04.5]} 52. h5 {[%clk
0:00:05.4]} 52... Nd4+ {[%clk 0:00:03.9]} 53. Kf6 {[%clk 0:00:05.9]} 53... b3
{[%clk 0:00:04.1]} 54. Rb7 {[%clk 0:00:05.2]} 54... a5 {[%clk 0:00:04.3]} 55. h6
{[%clk 0:00:05.3]} 55... Kc6 {[%clk 0:00:04.3]} 56. Rb8 {[%clk 0:00:05.1]} 56...
Kc7 {[%clk 0:00:04.8]} 57. Rxb3 {[%clk 0:00:04.6]} 57... Nxb3 {[%clk 0:00:04.3]}
58. h7 {[%clk 0:00:05.1]} 58... a4 {[%clk 0:00:02.8]} 59. h8=Q {[%clk
0:00:05.5]} 59... a3 {[%clk 0:00:03.7]} 60. Qa8 {[%clk 0:00:04.6]} 1-0